Cogmind - Beta 16 @@@ ROGUE MODE // 2025.11.04 @ 02:24:39 Player: Dizzy Result: Destroyed by S-10 Pest with Light Assault Rifle Performance ------------- Evolutions (0) 0 Regions Visited (1) 200 Robots Destroyed (11) 55 Value Destroyed (387) 387 Prototype IDs (0) 0 Alien Tech Used (0) 0 Bonus (0) 0 TOTAL SCORE: 642 Bonus ------- None Cogmind --------- Core Integrity 0/250 Matter 248/300 Energy 58/100 System Corruption 0% Temperature Danger (431) Movement Walking (120) Location -10/Materials Parts ------- > --- POWER (1) -------- (None) > --- PROPULSION (2) --- Aluminum Leg Aluminum Leg > --- UTILITY (2) ------ (None) > --- WEAPON (2) ------- Light Assault Rifle > --- INVENTORY (5) ---- Aluminum Leg Aluminum Leg Aluminum Leg Assault Rifle Peak State ------------ > --- POWER ------------ Light Ion Engine > --- PROPULSION ------- Wheel Wheel > --- UTILITY ---------- (None) > --- WEAPON ----------- Assault Rifle Light Assault Rifle > --- INVENTORY -------- Aluminum Leg Aluminum Leg [Rating: 5] Favorites ----------- Power Ion Engine Engine Ion Engine Propulsion Wheel Leg Aluminum Leg Wheel Wheel Utility None Weapon Light Assault Rifle Energy Gun EM Pulse Gun Energy Cannon Beam Cannon Ballistic Gun Light Assault Rifle Build | -11 -10 ------- Run | Yrd Mat Slots Evolved . | . . Power . | . . Propulsion . | . . Utility . | . . Weapon . | . . Parts Attached 11 | 6 5 Power 2 | 2 . Engine 2 | 2 . Core . | . . Reactor . | . . Propulsion 5 | 2 3 Treads . | . . Leg 3 | . 3 Wheel 2 | 2 . Hover . | . . Flight . | . . Utility . | . . Device . | . . Storage . | . . Processor . | . . Hackware . | . . Protection . | . . Artifact . | . . Weapon 4 | 2 2 Energy Gun 1 | . 1 Energy Cannon 1 | . 1 Ballistic Gun 2 | 2 . Ballistic Cannon . | . . Launcher . | . . Special Weapon . | . . Impact Weapon . | . . Slashing Weapon . | . . Piercing Weapon . | . . Special Melee Weapon . | . . Unidentified Prototypes . | . . Parts Lost 4 | . 4 Power 1 | . 1 Propulsion 1 | . 1 Utility . | . . Weapon 2 | . 2 Highest Loss Streak 3 | . 3 To Critical Strikes . | . . Average Backups 3 | 1 4 Power . | . . Propulsion 2 | 1 3 Utility . | . . Weapon 1 | . 1 Tool/Special . | . . Unused Backups 4 | . 4 Power . | . . Propulsion 3 | . 3 Utility . | . . Weapon 1 | . 1 Tool/Special . | . . Average Slot Usage (%) 68 | . 68 Engine 13 | . 13 Leg 5 | . 5 Wheel 19 | . 19 Energy Gun 1 | . 1 Energy Cannon 4 | . 4 Ballistic Gun 22 | . 22 Peak Build Rating 5 | 5 5 Average Rating 4 | 3 4 On Entrance 2 | . 5 Avg Prop Armor Cover (%) 6 | . 6 Naked Turns . | . . Heaviest Build 9 | 8 9 Greatest Support 20 | 20 20 Greatest Overweight (x) . | . . Average Overweight (x) . | . . Largest Inventory Capacity 5 | 5 5 Average Capacity 5 | 5 5 Most Carried 5 | 5 5 Average Carried 4 | 1 4 Final Capacity 5 | 5 5 Final Carried 5 | 5 4 Class Distribution -------------------- 100% | Mutant Dominant Class ---------------- Mutant | -10/Materials Resources | -11 -10 ----------- Run | Yrd Mat Matter Collected 346 | 246 100 Remotely . | . . Salvage Created 507 | 47 460 Parts 24 | 3 21 Haulers Intercepted . | . . Recyclers Shooed . | . . Parts Field Recycled . | . . Retrieved Matter . | . . Parts Self-Destructed . | . . Prevented . | . . Parts Restored . | . . Kills | -11 -10 ------- Run | Yrd Mat Combat Hostiles Destroyed 11 | 1 10 Melee 1 | . 1 Guns 4 | 1 3 Cannons 6 | . 6 Classes Destroyed 1 | 1 . Grunt 11 | 1 10 Best Kill Streak 7 | 1 7 Combat Bots Only 7 | 1 7 Max Kills in Single Turn 1 | 1 1 Gunslinging . | . . Exploded . | . . Melee 1 | . 1 Uniques/NPCs Destroyed . | . . Combat | -11 -10 -------- Run | Yrd Mat Hostile Shots Fired 86 | 4 82 Missed 21 | . 21 Hits 65 | 4 61 Projectile 65 | 4 61 Critical Strikes 2 | . 2 Damage Taken 741 | 44 697 Core 255 | 11 244 Absorbed by Shields . | . . Core Remaining (%) 95 | 95 . Volleys Fired 44 | 3 41 Largest 2 | 2 2 Hottest 80 | 40 80 Shots Fired 72 | 6 66 Gun 50 | 6 44 Cannon 22 | . 22 Launcher . | . . Special . | . . Kinetic 43 | 6 37 Thermal 22 | . 22 Explosive . | . . Electromagnetic 7 | . 7 Robot Hit Streak 12 | 2 12 Robot Miss Streak 7 | 2 7 Penetration Max . | . . Secondary Targets . | . . Shots Hit Robots 42 | 3 39 Core Hits 18 | 2 16 Critical Kills . | . . Critical Parts Destroyed 1 | . 1 Critical Strikes 1 | . 1 Destroy 1 | . 1 Melee Attacks . | . . Impact . | . . Slashing . | . . Piercing . | . . Sneak Attacks . | . . Combat Hostiles . | . . Follow-up Attacks . | . . Damage Inflicted 536 | 31 505 Guns 258 | 31 227 Cannons 277 | . 277 Explosions . | . . Melee . | . . Ramming 1 | . 1 Kinetic 234 | 31 203 Thermal 277 | . 277 Explosive . | . . Electromagnetic 24 | . 24 Impact . | . . Slashing . | . . Piercing . | . . Highest Corruption . | . . Average Corruption . | . . Corruption Purged . | . . Corruption Blocked . | . . Overload Shots . | . . Overflow Damage . | . . Projectiles . | . . Explosions . | . . Melee . | . . Knockbacks . | . . Impact . | . . Kinetic . | . . Secondary . | . . Self-Inflicted Damage . | . . Shots . | . . Rammed . | . . Targets Rammed 1 | . 1 Kicked 1 | . 1 Crushed . | . . Highest Temperature 445 | 12 445 Average Temperature 270 | 9 281 Received Heat Transfer 402 | 24 378 Effects 4 | . 4 Shutdowns 2 | . 2 Matter Decay 1 | . 1 Short Circuit 1 | . 1 Siege Activations . | . . Martial Activations . | . . Shielding Activations . | . . Robots Disrupted . | . . Combat Hostiles . | . . Robots Corrupted . | . . Combat Hostiles . | . . Parts Fried . | . . Impact Corruptions . | . . Robots Melted . | . . Combat Hostiles . | . . Parts Melted . | . . Heat Transferred 592 | . 592 Parts Sabotaged . | . . Parts Stolen . | . . Parts Stripped . | . . Power Chain Reactions . | . . Alert | -11 -10 ------- Run | Yrd Mat Maximum Alert Level 1 | . 1 Low Security (%) 86 | 100 80 Level 1 13 | . 19 Level 2 . | . . Level 3 . | . . Level 4 . | . . Level 5 . | . . High Security . | . . Max Security . | . . Peak Influence 240 | 20 240 Initial 13 | . 13 Average 56 | 3 77 Influence Increases 370 | 20 350 Destroy 0b10 Robot/C 220 | 20 200 Destroy Leader 30 | . 30 Lose Combat Pursuer 120 | . 120 Influence Decreases 110 | . 110 Entered New Map 7 | . 7 Time Decay 63 | . 63 Lost Part 40 | . 40 Squads Dispatched 3 | . 3 Investigation 2 | . 2 Extermination . | . . Reinforcement 1 | . 1 Assault . | . . Garrison . | . . Intercept . | . . Searches Triggered . | . . Construction Impeded . | . . Haulers Reinforced . | . . Active Scanning Responses . | . . Cargo Convoy Interrupts . | . . Stealth | -11 -10 --------- Run | Yrd Mat Distress Signals 2 | . 2 Communications Jammed . | . . Distress Signals . | . . Times Spotted 25 | 1 24 Peak Tracking Total 10 | . 10 Tactical Retreats 2 | . 2 Traps | -11 -10 ------- Run | Yrd Mat Traps Triggered 1 | . 1 Indirectly . | . . Trap Hack Attempts . | . . Triggered . | . . Disarmed . | . . Reprogrammed . | . . Reused . | . . Traps Extracted . | . . Installed . | . . Triggered . | . . Machines | -11 -10 ---------- Run | Yrd Mat Machines Disabled . | . . Max in Single Turn . | . . Machines Repaired . | . . Machines Dismantled . | . . Machines Sabotaged . | . . Overloaded Fab Kills . | . . Hacking | -11 -10 --------- Run | Yrd Mat Machines Accessed 3 | . 3 Terminals 2 | . 2 Fabricators . | . . Repair Stations . | . . Recycling Units 1 | . 1 Scanalyzers . | . . Garrison Access . | . . Total Hacks 9 | . 9 Successful 3 | . 3 Failed 6 | . 6 Catastrophic 2 | . 2 Database Lockouts . | . . Manual 2 | . 2 Terminals 5 | . 5 Fabricators . | . . Repair Stations . | . . Recycling Units 4 | . 4 Scanalyzers . | . . Garrison Access . | . . Terminal Hacks 1 | . 1 Locate Traps 1 | . 1 Fabricator Hacks . | . . Repair Station Hacks . | . . Recycling Unit Hacks 2 | . 2 Report Inventory 2 | . 2 Scanalyzer . | . . Garrison Access Hacks . | . . Unauthorized Hacks . | . . Terminals . | . . Fabricators . | . . Repair Stations . | . . Recycling Units . | . . Scanalyzers . | . . Garrison Access . | . . Data Cores Recovered . | . . Used . | . . Hacking Detections 3 | . 3 Full Trace Events 2 | . 2 Feedback Events . | . . Feedback Blocked . | . . Robot Schematics Acquired . | . . Robots Built . | . . Authchips . | . . Time . | . . Total Robot Build Rating . | . . Part Schematics Acquired . | . . Parts Built . | . . Authchips . | . . Time . | . . Total Part Build Rating . | . . Part Studies Acquired . | . . Parts Repaired . | . . Time . | . . Parts Recycled . | . . Recycled Matter . | . . Retrieved Matter . | . . Retrieved Components . | . . Parts Scanalyzed . | . . Part Schematics Acquired . | . . Parts Damaged . | . . Bothacking | -11 -10 ------------ Run | Yrd Mat Used RIF Installer . | . . Robots Hacked . | . . Non-combat . | . . Combat . | . . Robot Hacks Applied . | . . Relay Couplers Released . | . . Fabnet Peak Effective % . | . . Robots Rewired . | . . Allies Hacked . | . . Hacks Repelled . | . . Allies | -11 -10 -------- Run | Yrd Mat Total Allies . | . . Largest Group . | . . Highest-Rated Group . | . . Highest-Rated Ally . | . . Total Orders . | . . Ally Attacks . | . . Total Damage . | . . Kills . | . . Allies Corrupted . | . . Allies Melted . | . . Intel | -11 -10 ------- Run | Yrd Mat Active Infowar (turns) . | . . Robot Analysis Total . | . . Derelict Logs Recovered . | . . Drone Launches . | . . Drone Recoveries . | . . Exploration | -11 -10 ------------- Run | Yrd Mat Turns Passed 253 | 74 179 Spaces Moved 153 | 71 82 Core 16 | 16 . Treads . | . . Legs 5 | . 5 Wheels 132 | 55 77 Hover . | . . Flight . | . . Fastest Speed 50 | 50 80 Average Speed 78 | 73 82 Slowest Speed 120 | 80 120 Overloaded Moves . | . . Propulsion Burnouts . | . . Robots Hopped . | . . Potential Cave-ins . | . . Cave-ins Triggered . | . . Exploration Rate (%) 16 | 8 24 Regions Visited 1 Branch Regions . Pre-discovered Areas . | . . Known Exits Taken . | . . Unknown Exits Taken 1 | 1 . Scrap Searched . | . . Spaces Dug . | . . Terrain Destroyed . | . . Melee . | . . Projectile . | . . AOE . | . . Terrain Rammed . | . . Walls Destroyed . | . . Machines Disabled . | . . Actions | -11 -10 --------- Run | Yrd Mat Total 218 | 85 133 Wait . | . . Move 152 | 70 82 Hop . | . . Pick Up 6 | 5 1 Fast Attach 7 | 5 2 Attach 1 | . 1 Detach . | . . Swap 3 | 1 2 Drop 4 | 1 3 Fire 44 | 3 41 Melee . | . . Ram . | . . Kick 1 | . 1 Crush . | . . Escape Stasis . | . . Rewire . | . . Trap . | . . Miscellaneous . | . . Route ------- -11/Scrapyard -10/Materials History --------- Turn | Location | Event 2 | -11/Scrapyard | Met Revision 17 54 | -11/Scrapyard | Discovered new exit (range 8) 75 | -11/Scrapyard | Entered Materials 190 | -10/Materials | Core integrity fell below 50% 241 | -10/Materials | Destroyed 7 combat bots 246 | -10/Materials | Core integrity fell below 20% 254 | -10/Materials | Destroyed by S-10 Pest with Light Assault Rifle Last Messages --------------- 00205_ Acquired Aluminum Leg. 00206_ Acquired 26 matter. 00211_ G-34 Mercenary destroyed. 00212_ Lgt. Assault Rifle broken. 00212_ Overheating: Short circuit. 00220_ G-34 Mercenary destroyed. 00222_ K-01 Serf collects debris. 00223_ Overheating: Matter decay (-35). 00223_ Dropped Aluminum Leg. 00226_ Dropped Wheel. 00226_ Acquired Aluminum Leg. 00230_ K-01 Serf collects debris. 00237_ Beam Cannon destroyed. 00239_ Power failure, Ion Engine shutdown. 00239_ K-01 Serf cleans the Terminal. 00240_ Ion Engine destroyed. 00247_ Critical hit (Burn: +37). 00252_ EM Pulse Gun destroyed. 00254_ Kicked G-47 Trooper. 00254_ G-47 Trooper destroyed. Map ----- +----------------------------------------------------+ | ?????????????????????????????????????????????????? | | ?????????????????????????????????????????????????? | | ?????????????????????????????????????????????????? | | ?????????????????????????????????????????????????? | | ?????????????????????????????????????????????????? | | ?????????????????????????????????????????????????? | | ??????????????????????????^??????????????????????? | | ????????????????????? +???????????????????????? | | ????????????????????? #???????????????????????? | | ????????????????????? #???????????????????????? | | ????????????????????? ##??????????????????????? | | ????????????????????? #??????????????????????? | | ???????????? ???????? #??????????????????????? | | ?????#######/######## ###????????????????????? | | ?????# === ????????????????????? | | ###### === ???????????????????????? | | === #??????????????????????????? | | #??????????????????????????? | | #??????????????????????????? | | "" """ !! #??????????????????????????? | | "" """ !! #??????????????????????????? | | "" """ !! #??#+#?????????????????????? | | ### %*#??# #?????????????????????? | | #?# [%%##?#=#?????????????????????? | | "" ""#?# #a *###!#######+#?????????????? | | "" T"#?# ######kT=%s@s==!s%[ #?????????? | | "" ""#?# #????#!kk###%####="""""????????????? | | #?# T????#####?#=#?????????????????????? | | #?# #??????????# #?????????????????????? | | ###########?# #??????????# #?????????????????????? | | # [ #????# #??????????# #?????????????????????? | | # #????? ???????????# #?????????????????????? | | + #????? ???????????# #?????????????????????? | | # #????? ???????????# #?????????????????????? | | # "Y" #?????????????????# #?????????????????????? | | # """ #?????????????????? ??????????????????????? | | ########?????????????????? ??????????????????????? | | #????????????????????????? ??????????????????????? | | #????????????????????????? ??????????????????????? | | #????????????????????????? ??????????????????????? | | #????????????????????????? ??????????????????????? | | #????????????????????????? ??????????????????????? | | #????????????????????????????????????????????????? | | #????????????????????????????????????????????????? | | #????????????????????????????????????????????????? | | #????????????????????????????????????????????????? | | #????????????????????????????????????????????????? | | #????????????????????????????????????????????????? | | #????????????????????????????????????????????????? | | #????????????????????????????????????????????????? | +----------------------------------------------------+ Best States ------------- Heat Dissipation 25 Energy Generation 10 Energy Capacity 250 Matter Stores 300 Matter Capacity 300 Sight Range 16 Terrain Scan Density 10 Evasion (%) 50 Item Schematics ----------------- None Robot Schematics ------------------ None Fabricated ------------ Nothing Repaired ---------- Nothing Studied --------- None Alien Tech Used ----------------- None Achievements -------------- None Challenges ------------ None Game ------ Seed TeslaGravitonThermoblaster Manual? 0 Play Time 00:04:58 Cumulative 21.4 hours Start 2025.11.04 @ 02:21:47 End 2025.11.04 @ 02:24:39 Sessions 1 Manual Loads 0 Difficulty Rogue Special Mode None Game No. 45 Rogue 45 Adventurer 0 Explorer 0 Win Type - Total 0 Types 0/0/0/0/0/0/0/0/0/0 Lore% 16 Gallery% 24 Achievement% 22 Wizard Run 0 Options --------- Layout 0 ASCII 0 Keyboard 1 Movement Numpad Keybinds 0 Fullscreen 2 Font 24/Smallcaps Map View 76x50 Zoom Use 0% Tactical HUD 1 Map Filters NONE Filters NONE Steam 1 RUN: e1561f9e-7c8d-4e21-8ce4-d428b953d098